[Event "Titled Tuesday Blitz January 25 2022"]
[White "Leiva, Gianmarco"]
[Black "Artemenko, Oleg"]
[WhiteFideId "3804399"]
[BlackFideId "14201798"]
[WhiteElo "2328"]
[BlackElo "2287"]
[Result "0-1"]
[Round "08"]
[TimeControl "180+1"]
[Date "2022.01.26"]
[WhiteClock "0:00:07"]
[BlackClock "0:00:26"]

1. e4 {[%clk 0:03:00]}  e6 {[%clk 0:02:58]} 2. Qe2 {[%clk 0:03:00]}  Be7 {[%clk 0:02:58]} 3. Nf3 {[%clk 0:02:51]}  d5 {[%clk 0:02:57]} 4. d3 {[%clk 0:02:48]}  Nf6 {[%clk 0:02:57]} 5. g3 {[%clk 0:02:47]}  O-O {[%clk 0:02:56]} 6. e5 {[%clk 0:02:45]}  Nfd7 {[%clk 0:02:56]} 7. Bg2 {[%clk 0:02:45]}  c5 {[%clk 0:02:57]} 8. O-O {[%clk 0:02:45]}  Nc6 {[%clk 0:02:57]} 9. Nbd2 {[%clk 0:02:46]}  b5 {[%clk 0:02:57]} 10. Re1 {[%clk 0:02:44]}  Ba6 {[%clk 0:02:57]} 11. h4 {[%clk 0:02:35]}  Rc8 {[%clk 0:02:56]} 12. Nf1 {[%clk 0:02:36]}  b4 {[%clk 0:02:54]} 13. N1h2 {[%clk 0:02:31]}  Qc7 {[%clk 0:02:52]} 14. h5 {[%clk 0:02:29]}  Nd4 {[%clk 0:02:51]} 15. Qd1 {[%clk 0:02:25]}  Nxf3+ {[%clk 0:02:51]} 16. Nxf3 {[%clk 0:02:26]}  Rfd8 {[%clk 0:02:44]} 17. h6 {[%clk 0:02:25]}  g6 {[%clk 0:02:43]} 18. Bf4 {[%clk 0:02:00]}  d4 {[%clk 0:02:43]} 19. b3 {[%clk 0:01:57]}  Nb6 {[%clk 0:02:42]} 20. a4 {[%clk 0:01:55]}  Nd5 {[%clk 0:02:33]} 21. Bg5 {[%clk 0:01:56]}  Nc3 {[%clk 0:02:30]} 22. Qd2 {[%clk 0:01:56]}  Bb7 {[%clk 0:02:30]} 23. Bxe7 {[%clk 0:01:53]}  Qxe7 {[%clk 0:02:31]} 24. Ng5 {[%clk 0:01:49]}  Bxg2 {[%clk 0:02:30]} 25. Kxg2 {[%clk 0:01:50]}  a5 {[%clk 0:02:23]} 26. Qf4 {[%clk 0:01:47]}  Nd5 {[%clk 0:02:22]} 27. Qg4 {[%clk 0:01:46]}  Rc6 {[%clk 0:02:15]} 28. Ne4 {[%clk 0:01:45]}  Rf8 {[%clk 0:02:13]} 29. Re2 {[%clk 0:01:41]}  Qc7 {[%clk 0:02:06]} 30. Qg5 {[%clk 0:01:39]}  Qd8 {[%clk 0:02:02]} 31. Qxd8 {[%clk 0:00:58]}  Rxd8 {[%clk 0:02:03]} 32. Kh3 {[%clk 0:00:58]}  Kf8 {[%clk 0:01:59]} 33. Kg4 {[%clk 0:00:57]}  Ke7 {[%clk 0:01:58]} 34. Nd2 {[%clk 0:00:53]}  Nb6 {[%clk 0:01:47]} 35. Rae1 {[%clk 0:00:52]}  Rd5 {[%clk 0:01:46]} 36. Nf3 {[%clk 0:00:51]}  Rc8 {[%clk 0:01:44]} 37. Ng5 {[%clk 0:00:47]}  Rh8 {[%clk 0:01:44]} 38. Re4 {[%clk 0:00:43]}  Nd7 {[%clk 0:01:43]} 39. Rf4 {[%clk 0:00:42]}  Nxe5+ {[%clk 0:01:25]} 40. Rxe5 {[%clk 0:00:42]}  f5+ {[%clk 0:01:26]} 41. Rfxf5 {[%clk 0:00:21]}  gxf5+ {[%clk 0:01:22]} 42. Kf4 {[%clk 0:00:21]}  Rxe5 {[%clk 0:01:18]} 43. Kxe5 {[%clk 0:00:21]}  Re8 {[%clk 0:01:16]} 44. Nxh7 {[%clk 0:00:18]}  Rh8 {[%clk 0:01:16]} 45. Nf6 {[%clk 0:00:18]}  Kf7 {[%clk 0:01:16]} 46. h7 {[%clk 0:00:17]}  Rd8 {[%clk 0:01:01]} 47. f3 {[%clk 0:00:13]}  Rc8 {[%clk 0:00:57]} 48. g4 {[%clk 0:00:09]}  fxg4 {[%clk 0:00:57]} 49. fxg4 {[%clk 0:00:09]}  Rd8 {[%clk 0:00:56]} 50. g5 {[%clk 0:00:06]}  Rc8 {[%clk 0:00:56]} 51. Ng8 {[%clk 0:00:03]}  Kg7 {[%clk 0:00:55]} 52. g6 {[%clk 0:00:04]}  Rf8 {[%clk 0:00:42]} 53. Kxe6 {[%clk 0:00:02]}  Rf2 {[%clk 0:00:39]} 54. Nh6 {[%clk 0:00:02]}  Rf6+ {[%clk 0:00:36]} 55. Kd5 {[%clk 0:00:01]}  Rxg6 {[%clk 0:00:35]} 56. Nf5+ {[%clk 0:00:01]}  Kxh7 {[%clk 0:00:34]} 57. Nd6 {[%clk 0:00:02]}  Rg2 {[%clk 0:00:33]} 58. Nc4 {[%clk 0:00:01]}  Rxc2 {[%clk 0:00:33]} 59. Kxc5 {[%clk 0:00:02]}  Rc3 {[%clk 0:00:32]} 60. Kxd4 {[%clk 0:00:03]}  Rxb3 {[%clk 0:00:32]} 61. Nxa5 {[%clk 0:00:03]}  Ra3 {[%clk 0:00:32]} 62. Kc4 {[%clk 0:00:03]}  Rxa4 {[%clk 0:00:32]} 63. Nc6 {[%clk 0:00:03]}  Kg6 {[%clk 0:00:26]} 64. Nxb4 {[%clk 0:00:03]}  Kf5 {[%clk 0:00:26]} 65. Kb3 {[%clk 0:00:03]}  Ra8 {[%clk 0:00:26]} 66. Nc6 {[%clk 0:00:03]}  Ke6 {[%clk 0:00:25]} 67. Nb4 {[%clk 0:00:02]}  Ke5 {[%clk 0:00:24]} 68. Kc3 {[%clk 0:00:01]}  Rc8+ {[%clk 0:00:24]} 69. Kd2 {[%clk 0:00:02]}  Rh8 {[%clk 0:00:24]} 70. Nc6+ {[%clk 0:00:01]}  Kd6 {[%clk 0:00:23]} 71. Nd4 {[%clk 0:00:01]}  Kd5 {[%clk 0:00:23]} 72. Nf5 {[%clk 0:00:01]}  Rh2+ {[%clk 0:00:20]} 73. Kc3 {[%clk 0:00:02]}  Re2 {[%clk 0:00:20]} 74. Ng3 {[%clk 0:00:02]}  Re3 {[%clk 0:00:19]} 75. Ne4 {[%clk 0:00:03]}  Rf3 {[%clk 0:00:19]} 76. Nd2 {[%clk 0:00:03]}  Rh3 {[%clk 0:00:19]} 77. Ne4 {[%clk 0:00:03]}  Rh1 {[%clk 0:00:20]} 78. Nf6+ {[%clk 0:00:03]}  Ke5 {[%clk 0:00:20]} 79. Ne4 {[%clk 0:00:04]}  Kf4 {[%clk 0:00:20]} 80. Nd2 {[%clk 0:00:03]}  Ke3 {[%clk 0:00:20]} 81. Nc4+ {[%clk 0:00:04]}  Ke2 {[%clk 0:00:20]} 82. Ne5 {[%clk 0:00:03]}  Rh3 {[%clk 0:00:19]} 83. Kd4 {[%clk 0:00:03]}  Rh4+ {[%clk 0:00:19]} 84. Kc3 {[%clk 0:00:03]}  Ra4 {[%clk 0:00:19]} 85. Nc4 {[%clk 0:00:03]}  Ra2 {[%clk 0:00:19]} 86. Kb3 {[%clk 0:00:03]}  Ra1 {[%clk 0:00:19]} 87. Kb2 {[%clk 0:00:03]}  Rd1 {[%clk 0:00:19]} 88. Ne5 {[%clk 0:00:03]}  Ke3 {[%clk 0:00:19]} 89. Kc3 {[%clk 0:00:03]}  Rc1+ {[%clk 0:00:19]} 90. Kb2 {[%clk 0:00:03]}  Rc8 {[%clk 0:00:19]} 91. Kb3 {[%clk 0:00:03]}  Kd4 {[%clk 0:00:19]} 92. Nd7 {[%clk 0:00:01]}  Kxd3 {[%clk 0:00:19]} 93. Kb4 {[%clk 0:00:01]}  Kd4 {[%clk 0:00:19]} 94. Kb5 {[%clk 0:00:02]}  Rc1 {[%clk 0:00:19]} 95. Nb6 {[%clk 0:00:02]}  Rc2 {[%clk 0:00:18]} 96. Nd7 {[%clk 0:00:01]}  Kd5 {[%clk 0:00:18]} 97. Nb6+ {[%clk 0:00:01]}  Ke5 {[%clk 0:00:18]} 98. Nc4+ {[%clk 0:00:02]}  Kd4 {[%clk 0:00:19]} 99. Nb6 {[%clk 0:00:02]}  Rb2+ {[%clk 0:00:20]} 100. Kc6 {[%clk 0:00:03]}  Rh2 {[%clk 0:00:20]} 101. Kb5 {[%clk 0:00:03]}  Rh6 {[%clk 0:00:21]} 102. Nc4 {[%clk 0:00:02]}  Rh5+ {[%clk 0:00:21]} 103. Kb4 {[%clk 0:00:03]}  Rh1 {[%clk 0:00:21]} 104. Nb6 {[%clk 0:00:02]}  Rb1+ {[%clk 0:00:22]} 105. Ka5 {[%clk 0:00:02]}  Kc5 {[%clk 0:00:22]} 106. Nd7+ {[%clk 0:00:02]}  Kd6 {[%clk 0:00:22]} 107. Nb6 {[%clk 0:00:02]}  Kc6 {[%clk 0:00:22]} 108. Nc4 {[%clk 0:00:02]}  Rb8 {[%clk 0:00:22]} 109. Ka4 {[%clk 0:00:02]}  Kc5 {[%clk 0:00:22]} 110. Ne5 {[%clk 0:00:01]}  Rd8 {[%clk 0:00:22]} 111. Ka3 {[%clk 0:00:01]}  Rd5 {[%clk 0:00:22]} 112. Nf3 {[%clk 0:00:01]}  Rd3+ {[%clk 0:00:23]} 113. Kb2 {[%clk 0:00:02]}  Rxf3 {[%clk 0:00:23]} 114. Kc2 {[%clk 0:00:02]}  Kd4 {[%clk 0:00:24]} 115. Kd2 {[%clk 0:00:03]}  Rf2+ {[%clk 0:00:24]} 116. Ke1 {[%clk 0:00:03]}  Ke3 {[%clk 0:00:24]} 117. Kd1 {[%clk 0:00:04]}  Rh2 {[%clk 0:00:24]} 118. Kc1 {[%clk 0:00:05]}  Kd3 {[%clk 0:00:25]} 119. Kb1 {[%clk 0:00:06]}  Kc3 {[%clk 0:00:25]} 120. Ka1 {[%clk 0:00:07]}  Kb3 {[%clk 0:00:26]} 0-1


[Site "https://www.chess.com"]

[Event "Titled Tuesday Blitz January 25 2022"]
[White "Lenderman, Aleksandr"]
[Black "Sychev, Klementy"]
[WhiteFideId "2021285"]
[BlackFideId "4114060"]
[WhiteElo "2651"]
[BlackElo "2564"]
[Result "1-0"]
[Round "08"]
[TimeControl "180+1"]
[Date "2022.01.26"]
[WhiteClock "0:00:31"]
[BlackClock "0:00:02"]

1. d4 {[%clk 0:02:58]}  Nf6 {[%clk 0:02:59]} 2. c4 {[%clk 0:02:58]}  e6 {[%clk 0:02:58]} 3. Nc3 {[%clk 0:02:57]}  Bb4 {[%clk 0:02:55]} 4. Qc2 {[%clk 0:02:57]}  h6 {[%clk 0:02:36]} 5. e4 {[%clk 0:02:54]}  c5 {[%clk 0:02:05]} 6. d5 {[%clk 0:02:42]}  exd5 {[%clk 0:01:57]} 7. exd5 {[%clk 0:02:41]}  Qe7+ {[%clk 0:01:56]} 8. Ne2 {[%clk 0:02:38]}  b5 {[%clk 0:01:52]} 9. cxb5 {[%clk 0:02:22]}  Nxd5 {[%clk 0:01:44]} 10. Bd2 {[%clk 0:02:22]}  Nf6 {[%clk 0:01:17]} 11. O-O-O {[%clk 0:02:18]}  O-O {[%clk 0:01:17]} 12. Nf4 {[%clk 0:02:16]}  Bb7 {[%clk 0:01:06]} 13. Bc4 {[%clk 0:02:16]}  Bxc3 {[%clk 0:00:51]} 14. Bxc3 {[%clk 0:02:13]}  Qe4 {[%clk 0:00:51]} 15. Qxe4 {[%clk 0:02:00]}  Nxe4 {[%clk 0:00:51]} 16. Bd5 {[%clk 0:01:18]}  Bxd5 {[%clk 0:00:46]} 17. Rxd5 {[%clk 0:01:19]}  a6 {[%clk 0:00:18]} 18. b6 {[%clk 0:01:17]}  a5 {[%clk 0:00:18]} 19. Re1 {[%clk 0:01:12]}  Nxc3 {[%clk 0:00:18]} 20. bxc3 {[%clk 0:01:13]}  Ra6 {[%clk 0:00:18]} 21. Rd6 {[%clk 0:01:11]}  a4 {[%clk 0:00:04]} 22. Nd5 {[%clk 0:01:11]}  a3 {[%clk 0:00:04]} 23. Kc2 {[%clk 0:01:08]}  Kh7 {[%clk 0:00:03]} 24. Kb3 {[%clk 0:01:06]}  Ra5 {[%clk 0:00:04]} 25. Kc4 {[%clk 0:01:02]}  f6 {[%clk 0:00:03]} 26. Re7 {[%clk 0:01:02]}  Nc6 {[%clk 0:00:02]} 27. Rdxd7 {[%clk 0:00:47]}  Ne5+ {[%clk 0:00:02]} 28. Rxe5 {[%clk 0:00:47]}  fxe5 {[%clk 0:00:03]} 29. b7 {[%clk 0:00:46]}  Rb8 {[%clk 0:00:03]} 30. Nf6+ {[%clk 0:00:37]}  Kg6 {[%clk 0:00:04]} 31. Ne4 {[%clk 0:00:38]}  Kf5 {[%clk 0:00:03]} 32. Nxc5 {[%clk 0:00:35]}  g5 {[%clk 0:00:04]} 33. Kb4 {[%clk 0:00:33]}  Ra7 {[%clk 0:00:03]} 34. Kb5 {[%clk 0:00:33]}  g4 {[%clk 0:00:03]} 35. Kb6 {[%clk 0:00:33]}  Raa8 {[%clk 0:00:02]} 36. Kc7 {[%clk 0:00:31]} 1-0


[Site "https://www.chess.com"]

[Event "Titled Tuesday Blitz January 25 2022"]
[White "Maevsky, Nikolay"]
[Black "Bethke, Richard"]
[WhiteFideId "4198220"]
[BlackFideId "12959243"]
[WhiteElo "2104"]
[BlackElo "2456"]
[Result "1-0"]
[Round "08"]
[TimeControl "180+1"]
[Date "2022.01.26"]
[WhiteClock "0:00:15"]
[BlackClock "0:00:19"]

1. d4 {[%clk 0:02:47]}  c6 {[%clk 0:02:40]} 2. Nf3 {[%clk 0:02:46]}  Nf6 {[%clk 0:02:38]} 3. c4 {[%clk 0:02:43]}  d5 {[%clk 0:02:34]} 4. e3 {[%clk 0:02:43]}  g6 {[%clk 0:02:33]} 5. Nc3 {[%clk 0:02:42]}  Bg7 {[%clk 0:02:34]} 6. Be2 {[%clk 0:02:42]}  O-O {[%clk 0:02:34]} 7. O-O {[%clk 0:02:42]}  Bf5 {[%clk 0:02:33]} 8. Nh4 {[%clk 0:02:41]}  Nbd7 {[%clk 0:02:31]} 9. Nxf5 {[%clk 0:02:40]}  gxf5 {[%clk 0:02:32]} 10. b3 {[%clk 0:02:35]}  Ne4 {[%clk 0:02:30]} 11. Bb2 {[%clk 0:02:35]}  e6 {[%clk 0:02:24]} 12. Rc1 {[%clk 0:02:35]}  Qg5 {[%clk 0:02:21]} 13. Qd3 {[%clk 0:02:24]}  Ndf6 {[%clk 0:02:09]} 14. f3 {[%clk 0:02:22]}  Nxc3 {[%clk 0:02:07]} 15. Bxc3 {[%clk 0:02:22]}  Rfd8 {[%clk 0:01:42]} 16. c5 {[%clk 0:02:18]}  f4 {[%clk 0:01:36]} 17. Bd2 {[%clk 0:01:54]}  fxe3 {[%clk 0:01:35]} 18. Bxe3 {[%clk 0:01:54]}  Qg6 {[%clk 0:01:35]} 19. Qd2 {[%clk 0:01:47]}  Nd7 {[%clk 0:01:29]} 20. Bd3 {[%clk 0:01:47]}  f5 {[%clk 0:01:29]} 21. Qf2 {[%clk 0:01:38]}  Rf8 {[%clk 0:01:25]} 22. Rcd1 {[%clk 0:01:25]}  Rae8 {[%clk 0:01:06]} 23. Bf4 {[%clk 0:01:18]}  e5 {[%clk 0:01:03]} 24. dxe5 {[%clk 0:01:17]}  Bxe5 {[%clk 0:01:04]} 25. Bxe5 {[%clk 0:01:06]}  Nxe5 {[%clk 0:01:05]} 26. Bb1 {[%clk 0:00:59]}  Qg7 {[%clk 0:00:57]} 27. Rfe1 {[%clk 0:00:56]}  Ng6 {[%clk 0:00:50]} 28. f4 {[%clk 0:00:52]}  Qc3 {[%clk 0:00:37]} 29. Rxe8 {[%clk 0:00:50]}  Rxe8 {[%clk 0:00:38]} 30. Bxf5 {[%clk 0:00:48]}  d4 {[%clk 0:00:34]} 31. h3 {[%clk 0:00:34]}  Qxc5 {[%clk 0:00:32]} 32. Bxg6 {[%clk 0:00:33]}  hxg6 {[%clk 0:00:33]} 33. Rxd4 {[%clk 0:00:32]}  Rf8 {[%clk 0:00:28]} 34. Re4 {[%clk 0:00:28]}  Qd5 {[%clk 0:00:26]} 35. Qe2 {[%clk 0:00:25]}  Qd6 {[%clk 0:00:26]} 36. Qe3 {[%clk 0:00:21]}  Rf7 {[%clk 0:00:23]} 37. Re6 {[%clk 0:00:20]}  Qd1+ {[%clk 0:00:22]} 38. Kh2 {[%clk 0:00:20]}  Qh5 {[%clk 0:00:21]} 39. Re8+ {[%clk 0:00:17]}  Kh7 {[%clk 0:00:20]} 40. Qd4 {[%clk 0:00:15]}  Rg7 {[%clk 0:00:19]} 41. Qd8 {[%clk 0:00:15]} 1-0


[Site "https://www.chess.com"]

[Event "Titled Tuesday Blitz January 25 2022"]
[White "Martinez Alcantara, Jose Eduardo"]
[Black "Demchenko, Anton"]
[WhiteFideId "3805662"]
[BlackFideId "4160258"]
[WhiteElo "2980"]
[BlackElo "2879"]
[Result "1-0"]
[Round "08"]
[TimeControl "180+1"]
[Date "2022.01.26"]
[WhiteClock "0:00:10"]
[BlackClock "0:00:02"]

1. e4 {[%clk 0:03:00]}  e5 {[%clk 0:02:59]} 2. Nf3 {[%clk 0:03:01]}  Nc6 {[%clk 0:02:59]} 3. Bb5 {[%clk 0:03:02]}  a6 {[%clk 0:02:58]} 4. Ba4 {[%clk 0:03:02]}  d6 {[%clk 0:02:57]} 5. c3 {[%clk 0:02:58]}  Bd7 {[%clk 0:02:56]} 6. O-O {[%clk 0:02:58]}  g6 {[%clk 0:02:56]} 7. d4 {[%clk 0:02:58]}  Bg7 {[%clk 0:02:57]} 8. h3 {[%clk 0:02:57]}  Nge7 {[%clk 0:02:54]} 9. dxe5 {[%clk 0:02:51]}  Nxe5 {[%clk 0:02:52]} 10. Nxe5 {[%clk 0:02:51]}  dxe5 {[%clk 0:02:52]} 11. Bb3 {[%clk 0:02:48]}  O-O {[%clk 0:02:51]} 12. Re1 {[%clk 0:02:42]}  a5 {[%clk 0:02:29]} 13. a4 {[%clk 0:02:30]}  Nc8 {[%clk 0:02:17]} 14. Nd2 {[%clk 0:02:28]}  Nd6 {[%clk 0:02:15]} 15. Nc4 {[%clk 0:02:27]}  Nxc4 {[%clk 0:02:13]} 16. Bxc4 {[%clk 0:02:27]}  Qe7 {[%clk 0:02:05]} 17. b3 {[%clk 0:02:24]}  Rfd8 {[%clk 0:01:49]} 18. Ba3 {[%clk 0:02:10]}  Qe8 {[%clk 0:01:49]} 19. Qe2 {[%clk 0:02:07]}  Bf8 {[%clk 0:01:41]} 20. Bxf8 {[%clk 0:01:57]}  Qxf8 {[%clk 0:01:26]} 21. Qe3 {[%clk 0:01:57]}  Qe7 {[%clk 0:01:20]} 22. Rad1 {[%clk 0:01:53]}  Be6 {[%clk 0:01:19]} 23. Bxe6 {[%clk 0:01:45]}  Qxe6 {[%clk 0:01:20]} 24. c4 {[%clk 0:01:46]}  Qe7 {[%clk 0:00:51]} 25. Rd2 {[%clk 0:01:31]}  Rxd2 {[%clk 0:00:36]} 26. Qxd2 {[%clk 0:01:32]}  Qd8 {[%clk 0:00:37]} 27. Rd1 {[%clk 0:01:25]}  Qe7 {[%clk 0:00:11]} 28. Qd7 {[%clk 0:01:21]}  Qb4 {[%clk 0:00:09]} 29. Qd3 {[%clk 0:00:45]}  c6 {[%clk 0:00:09]} 30. g3 {[%clk 0:00:42]}  Re8 {[%clk 0:00:08]} 31. Kg2 {[%clk 0:00:42]}  Kg7 {[%clk 0:00:08]} 32. h4 {[%clk 0:00:42]}  h5 {[%clk 0:00:08]} 33. Qe3 {[%clk 0:00:39]}  Re6 {[%clk 0:00:08]} 34. Rd7 {[%clk 0:00:39]}  Re7 {[%clk 0:00:02]} 35. Rd8 {[%clk 0:00:33]}  Re6 {[%clk 0:00:03]} 36. Qd3 {[%clk 0:00:30]}  Qe7 {[%clk 0:00:03]} 37. Rd7 {[%clk 0:00:30]}  Qb4 {[%clk 0:00:03]} 38. Rc7 {[%clk 0:00:22]}  Qc5 {[%clk 0:00:02]} 39. Rxb7 {[%clk 0:00:20]}  Rf6 {[%clk 0:00:03]} 40. Qe2 {[%clk 0:00:19]}  Qd4 {[%clk 0:00:03]} 41. Rb8 {[%clk 0:00:10]}  Qc3 {[%clk 0:00:03]} 42. Rb7 {[%clk 0:00:08]}  Rd6 {[%clk 0:00:03]} 43. Qf3 {[%clk 0:00:08]}  Qxf3+ {[%clk 0:00:03]} 44. Kxf3 {[%clk 0:00:09]}  Rd3+ {[%clk 0:00:02]} 45. Ke2 {[%clk 0:00:09]}  Rc3 {[%clk 0:00:03]} 46. Rb6 {[%clk 0:00:07]}  c5 {[%clk 0:00:03]} 47. Rb5 {[%clk 0:00:07]}  Kf6 {[%clk 0:00:03]} 48. Rb6+ {[%clk 0:00:07]}  Ke7 {[%clk 0:00:03]} 49. Rb5 {[%clk 0:00:07]}  Kd6 {[%clk 0:00:04]} 50. Rb7 {[%clk 0:00:07]}  Ke6 {[%clk 0:00:04]} 51. Rb6+ {[%clk 0:00:07]}  Kd7 {[%clk 0:00:04]} 52. Kd2 {[%clk 0:00:07]}  Rf3 {[%clk 0:00:04]} 53. Ke1 {[%clk 0:00:08]}  Rc3 {[%clk 0:00:04]} 54. Rb7+ {[%clk 0:00:08]}  Ke6 {[%clk 0:00:04]} 55. Rb5 {[%clk 0:00:08]}  Kd6 {[%clk 0:00:04]} 56. Rxa5 {[%clk 0:00:09]}  Rxb3 {[%clk 0:00:05]} 57. Ra6+ {[%clk 0:00:09]}  Ke7 {[%clk 0:00:05]} 58. Rc6 {[%clk 0:00:09]}  Rb4 {[%clk 0:00:04]} 59. Rxc5 {[%clk 0:00:09]}  Rxa4 {[%clk 0:00:05]} 60. Rxe5+ {[%clk 0:00:10]}  Kd6 {[%clk 0:00:05]} 61. Rd5+ {[%clk 0:00:10]}  Kc6 {[%clk 0:00:06]} 62. Rd4 {[%clk 0:00:10]}  Ra2 {[%clk 0:00:03]} 63. Kf1 {[%clk 0:00:08]}  Rc2 {[%clk 0:00:03]} 64. Kg2 {[%clk 0:00:08]}  Rc3 {[%clk 0:00:03]} 65. e5 {[%clk 0:00:08]}  Kc7 {[%clk 0:00:02]} 66. Rf4 {[%clk 0:00:08]}  Kd8 {[%clk 0:00:02]} 67. Rxf7 {[%clk 0:00:09]}  Rxc4 {[%clk 0:00:02]} 68. Rf6 {[%clk 0:00:09]}  Ke7 {[%clk 0:00:02]} 69. Rxg6 {[%clk 0:00:10]} 1-0


[Site "https://www.chess.com"]

[Event "Titled Tuesday Blitz January 25 2022"]
[White "Mustafayev, Farid"]
[Black "Sapunov, Evgeny"]
[WhiteFideId "13408771"]
[BlackFideId "4126661"]
[WhiteElo "2129"]
[BlackElo "2470"]
[Result "1-0"]
[Round "08"]
[TimeControl "180+1"]
[Date "2022.01.26"]
[WhiteClock "0:00:43"]
[BlackClock "0:00:47"]

1. d4 {[%clk 0:03:00]}  Nf6 {[%clk 0:02:59]} 2. c4 {[%clk 0:03:01]}  g6 {[%clk 0:03:00]} 3. Nc3 {[%clk 0:03:01]}  Bg7 {[%clk 0:03:00]} 4. g3 {[%clk 0:03:01]}  O-O {[%clk 0:03:01]} 5. Bg2 {[%clk 0:03:01]}  d6 {[%clk 0:03:02]} 6. e4 {[%clk 0:03:01]}  Nc6 {[%clk 0:03:00]} 7. Nge2 {[%clk 0:03:01]}  e5 {[%clk 0:03:00]} 8. dxe5 {[%clk 0:02:59]}  dxe5 {[%clk 0:03:00]} 9. Qxd8 {[%clk 0:02:59]}  Rxd8 {[%clk 0:03:00]} 10. Bg5 {[%clk 0:03:00]}  Rd3 {[%clk 0:02:04]} 11. Nd5 {[%clk 0:02:34]}  Nxd5 {[%clk 0:02:00]} 12. cxd5 {[%clk 0:02:35]}  Nd4 {[%clk 0:01:58]} 13. Nxd4 {[%clk 0:02:33]}  Rxd4 {[%clk 0:01:57]} 14. Rc1 {[%clk 0:02:32]}  c6 {[%clk 0:01:57]} 15. a3 {[%clk 0:02:11]}  Bd7 {[%clk 0:01:54]} 16. Be3 {[%clk 0:02:10]}  Ra4 {[%clk 0:01:54]} 17. O-O {[%clk 0:02:08]}  f5 {[%clk 0:01:44]} 18. dxc6 {[%clk 0:02:05]}  Bxc6 {[%clk 0:01:42]} 19. exf5 {[%clk 0:01:51]}  Bxg2 {[%clk 0:01:41]} 20. Kxg2 {[%clk 0:01:52]}  gxf5 {[%clk 0:01:42]} 21. Rfd1 {[%clk 0:01:51]}  f4 {[%clk 0:01:40]} 22. Bc5 {[%clk 0:01:43]}  Rc8 {[%clk 0:01:35]} 23. Bb4 {[%clk 0:01:38]}  Rxc1 {[%clk 0:01:27]} 24. Rxc1 {[%clk 0:01:39]}  b6 {[%clk 0:01:05]} 25. b3 {[%clk 0:01:29]}  Ra6 {[%clk 0:01:05]} 26. Rc6 {[%clk 0:01:29]}  Kf7 {[%clk 0:01:03]} 27. Kf3 {[%clk 0:01:24]}  fxg3 {[%clk 0:01:02]} 28. hxg3 {[%clk 0:01:25]}  Bf6 {[%clk 0:01:03]} 29. Ke4 {[%clk 0:01:24]}  h5 {[%clk 0:00:55]} 30. Kf5 {[%clk 0:01:22]}  Bg7 {[%clk 0:00:55]} 31. Ke4 {[%clk 0:01:14]}  Bf6 {[%clk 0:00:54]} 32. Kd5 {[%clk 0:01:12]}  h4 {[%clk 0:00:51]} 33. gxh4 {[%clk 0:01:09]}  Bxh4 {[%clk 0:00:52]} 34. f3 {[%clk 0:01:08]}  Bg3 {[%clk 0:00:52]} 35. Kc4 {[%clk 0:01:00]}  b5+ {[%clk 0:00:50]} 36. Kxb5 {[%clk 0:01:00]}  Rxc6 {[%clk 0:00:51]} 37. Kxc6 {[%clk 0:01:01]}  Ke6 {[%clk 0:00:48]} 38. Bc5 {[%clk 0:01:01]}  a6 {[%clk 0:00:46]} 39. Kb6 {[%clk 0:00:53]}  Kf5 {[%clk 0:00:47]} 40. Be3 {[%clk 0:00:49]}  Bf4 {[%clk 0:00:47]} 41. Bc5 {[%clk 0:00:44]}  Bc1 {[%clk 0:00:47]} 42. Kxa6 {[%clk 0:00:44]}  Kf4 {[%clk 0:00:47]} 43. a4 {[%clk 0:00:44]}  Kxf3 {[%clk 0:00:47]} 44. Kb5 {[%clk 0:00:45]}  e4 {[%clk 0:00:48]} 45. a5 {[%clk 0:00:45]}  Be3 {[%clk 0:00:46]} 46. a6 {[%clk 0:00:41]}  Bxc5 {[%clk 0:00:45]} 47. Kxc5 {[%clk 0:00:42]}  e3 {[%clk 0:00:46]} 48. a7 {[%clk 0:00:42]}  e2 {[%clk 0:00:47]} 49. a8=Q+ {[%clk 0:00:43]} 1-0


[Site "https://www.chess.com"]

[Event "Titled Tuesday Blitz January 25 2022"]
[White "Nguyen, Hong Ngoc"]
[Black "Odegov, Artem"]
[WhiteFideId "12403083"]
[BlackFideId "34183644"]
[WhiteElo "1830"]
[BlackElo "2277"]
[Result "0-1"]
[Round "08"]
[TimeControl "180+1"]
[Date "2022.01.26"]
[WhiteClock "0:01:32"]
[BlackClock "0:01:13"]

1. e4 {[%clk 0:03:00]}  e6 {[%clk 0:03:00]} 2. d4 {[%clk 0:03:00]}  d5 {[%clk 0:03:00]} 3. Nc3 {[%clk 0:03:01]}  Bb4 {[%clk 0:03:00]} 4. Bd3 {[%clk 0:03:00]}  dxe4 {[%clk 0:02:57]} 5. Bxe4 {[%clk 0:03:01]}  Nf6 {[%clk 0:02:58]} 6. Bd3 {[%clk 0:03:01]}  O-O {[%clk 0:02:54]} 7. Ne2 {[%clk 0:02:58]}  c5 {[%clk 0:02:54]} 8. a3 {[%clk 0:02:50]}  Bxc3+ {[%clk 0:02:54]} 9. bxc3 {[%clk 0:02:50]}  Nc6 {[%clk 0:02:55]} 10. Be3 {[%clk 0:02:48]}  Nd5 {[%clk 0:02:54]} 11. O-O {[%clk 0:02:46]}  Nxc3 {[%clk 0:02:31]} 12. Nxc3 {[%clk 0:02:41]}  cxd4 {[%clk 0:02:31]} 13. Bd2 {[%clk 0:02:40]}  dxc3 {[%clk 0:02:31]} 14. Bxc3 {[%clk 0:02:41]}  e5 {[%clk 0:02:29]} 15. Re1 {[%clk 0:02:32]}  Qg5 {[%clk 0:02:25]} 16. Be4 {[%clk 0:02:28]}  Rd8 {[%clk 0:02:21]} 17. Bxc6 {[%clk 0:02:17]}  Rxd1 {[%clk 0:02:14]} 18. Raxd1 {[%clk 0:02:17]}  Bg4 {[%clk 0:02:07]} 19. Rxe5 {[%clk 0:02:04]}  Qxe5 {[%clk 0:01:23]} 20. Bxe5 {[%clk 0:02:04]}  Bxd1 {[%clk 0:01:23]} 21. Bxb7 {[%clk 0:02:04]}  Re8 {[%clk 0:01:24]} 22. f4 {[%clk 0:02:02]}  Bxc2 {[%clk 0:01:24]} 23. Kf2 {[%clk 0:02:02]}  Rd8 {[%clk 0:01:20]} 24. g4 {[%clk 0:01:55]}  Rd3 {[%clk 0:01:16]} 25. Be4 {[%clk 0:01:32]}  Rxa3 {[%clk 0:01:13]} 0-1


[Site "https://www.chess.com"]